fUST/lending_fUST_20251010
["ID","MTS","AMOUNT","RATE_DAILY","PERIOD"]
[390518064,1760070641934,-500.0,0.00016438,2]
[390518066,1760070641943,-500.0,0.00016438,2]
[390518068,1760070641954,-500.0,0.00016438,2]
[390518070,1760070641963,-500.0,0.00016438,2]
[390518072,1760070641973,-500.0,0.00016438,2]
[390518074,1760070641982,-500.0,0.00016438,2]
[390518076,1760070641992,-500.0,0.00016438,2]
[390518078,1760070642002,-500.0,0.00016438,2]
[390518080,1760070642012,-1292.37,0.00016438,2]
[390518082,1760070642021,-500.0,0.00016438,2]
[390518084,1760070642031,-4009.72,0.00016438,2]
[390518086,1760070642040,-4009.72,0.00016438,2]
[390518088,1760070642049,-4009.72,0.00016438,2]
[390518090,1760070642060,-4009.72,0.00016438,2]
[390518092,1760070642069,-4009.72,0.00016438,2]
[390518094,1760070642079,-781.97,0.00016438,2]
[390518096,1760070642088,-500.0,0.00016438,2]
[390518098,1760070642098,-4009.72,0.00016438,2]
[390518100,1760070642107,-4009.72,0.00016438,2]
[390518102,1760070642116,-4009.72,0.00016438,2]
[390518104,1760070642125,-220.45133857,0.00016438,2]
[390518106,1760070642134,-4009.72,0.00016438,2]
[390518108,1760070642143,-4009.72,0.00016438,2]
[390518110,1760070642152,-500.0,0.00016438,2]
[390518112,1760070642161,-502.10397334,0.00016438,2]
[390518114,1760070642171,-500.0,0.00016438,2]
[390518116,1760070642180,-500.0,0.00016438,2]
[390518118,1760070642190,-500.0,0.00016438,2]
[390518120,1760070642199,-760.77,0.00016438,2]
[390518122,1760070642209,-1201.21,0.00016438,2]
[390518124,1760070642218,-500.0,0.00016438,2]
[390518126,1760070642227,-500.0,0.00016438,2]
[390518128,1760070642236,-500.0,0.00016438,2]
[390518130,1760070642246,-500.0,0.00016438,2]
[390518132,1760070642255,-500.65017267,0.00016438,2]
[390518134,1760070642264,-776.54,0.00016438,2]
[390518136,1760070642273,-500.0,0.00016438,2]
[390518138,1760070642285,-749.88,0.00016438,2]
[390518141,1760070642299,-930.46,0.00016438,2]
[390518143,1760070642308,-718.57,0.00016438,2]
[390518144,1760070642317,-500.0,0.00016438,2]
[390518147,1760070642327,-500.0,0.00016438,2]
[390518149,1760070642336,-501.00529747,0.00016438,2]
[390518151,1760070642345,-1138.46,0.00016438,2]
[390518153,1760070642354,-500.0,0.00016438,2]
[390518155,1760070642363,-156.98619799,0.00016438,2]
[390518157,1760070642373,-644.11,0.00016438,2]
[390518159,1760070642382,-500.0,0.00016438,2]
[390518160,1760070642391,-5494.58,0.00016438,2]
[390518163,1760070642401,-500.0,0.00016438,2]
[390518165,1760070642410,-1822.9,0.00016438,2]
[390518167,1760070642419,-968.88,0.00016438,2]
[390518168,1760070642428,-200.0,0.00016438,2]
[390518171,1760070642437,-500.0,0.00016438,2]
[390518190,1760070642606,-500.0,0.00016438,2]
[390518192,1760070642616,-500.0,0.00016438,2]
[390518194,1760070642626,-500.0,0.00016438,2]
[390518196,1760070642635,-500.0,0.00016438,2]
[390518198,1760070642645,-607.16,0.00016438,2]
[390518200,1760070642654,-500.0,0.00016438,2]
[390518202,1760070642664,-569.11,0.00016438,2]
[390518204,1760070642673,-481.71365748,0.00016438,2]
[390518206,1760070642682,-500.0,0.00016438,2]
[390518208,1760070642692,-598.14865491,0.00016438,2]
[390518210,1760070642701,-500.0,0.00016438,2]
[390518212,1760070642709,-2336.93,0.00016438,2]
[390518214,1760070642719,-500.0,0.00016438,2]
[390518216,1760070642727,-500.0,0.00016438,2]
[390518219,1760070642736,-3239.31,0.00016438,2]
[390518221,1760070642746,-959.68,0.00016438,2]
[390518223,1760070642755,-2270.97,0.00016438,2]
[390518224,1760070642764,-500.0,0.00016438,2]
[390518225,1760070642773,-500.0,0.00016438,2]
[390518226,1760070642781,-500.0,0.00016438,2]
[390518227,1760070642791,-677.79,0.00016438,2]
[390518228,1760070642801,-500.0,0.00016438,2]
[390518229,1760070642813,-1674.22,0.00016438,2]
[390518230,1760070642822,-500.0,0.00016438,2]
[390518231,1760070642830,-727.88,0.00016438,2]
[390518232,1760070642839,-500.0,0.00016438,2]
[390518233,1760070642848,-500.0,0.00016438,2]
[390518234,1760070642857,-500.0,0.00016438,2]
[390518235,1760070642867,-500.0,0.00016438,2]
[390518236,1760070642878,-500.0,0.00016438,2]
[390518237,1760070642888,-477.73133279,0.00016438,2]
[390518238,1760070642897,-1917.34,0.00016438,2]
[390518239,1760070642906,-500.0,0.00016438,2]
[390518240,1760070642914,-500.0,0.00016438,2]
[390518241,1760070642925,-1477.0,0.00016438,2]
[390518242,1760070642934,-500.0,0.00016438,2]
[390518243,1760070642943,-500.0,0.00016438,2]
[390518244,1760070642952,-502.25975422,0.00016438,2]
[390518245,1760070642962,-500.0,0.00016438,2]
[390518246,1760070642971,-500.0,0.00016438,2]
[390518247,1760070642980,-1000.0,0.00016438,2]
[390518248,1760070642989,-256.22024761,0.00016438,2]
[390518249,1760070642998,-2198.90281802,0.00016483,2]
[390518250,1760070643007,-5888.0,0.00016582,2]
[390518251,1760070643015,-761.0190396,0.000166,2]
[390518252,1760070643024,-1576.93866924,0.00016612,2]
[390518253,1760070643033,-711.0,0.0001667,2]
[390518254,1760070643042,-168.0,0.00016704,2]
[390518255,1760070643051,-1003.50789963,0.00016711,2]
[390518256,1760070643060,-4009.72,0.00016711,2]
[390518257,1760070643069,-4009.72,0.00016711,2]
[390518258,1760070643078,-4009.72,0.00016711,2]
[390518259,1760070643087,-4009.72,0.00016711,2]
[390518260,1760070643097,-4009.72,0.00016711,2]
[390518261,1760070643106,-4009.72,0.00016711,2]
[390518262,1760070643116,-4009.72,0.00016711,2]
[390518263,1760070643124,-4009.72,0.00016711,2]
[390518264,1760070643133,-500.0,0.00016712,2]
[390518265,1760070643143,-1477.0,0.00016712,2]
[390518266,1760070643151,-500.0,0.00016712,2]
[390518267,1760070643161,-500.0,0.00016712,2]
[390518268,1760070643170,-624.76,0.00016712,2]
[390518269,1760070643179,-500.0,0.00016712,2]
[390518270,1760070643188,-500.0,0.00016712,2]
[390518271,1760070643197,-500.0,0.00016712,2]
[390518272,1760070643207,-500.0,0.00016712,2]
[390518273,1760070643216,-500.0,0.00016712,2]
[390518274,1760070643225,-500.0,0.00016712,2]
[390518275,1760070643233,-503.88698207,0.00016712,2]
[390518276,1760070643242,-500.0,0.00016712,2]
[390518277,1760070643251,-242.78753328,0.00016712,2]
[390518278,1760070643260,-500.0,0.00016712,2]
[390518279,1760070643269,-500.69808346,0.00016712,2]
[390518280,1760070643278,-500.0,0.00016712,2]
[390518281,1760070643292,-500.0,0.00016712,2]
[390518282,1760070643306,-439.66486777,0.00016712,2]
[390518283,1760070643317,-500.0,0.00016712,2]
[390518284,1760070643325,-500.0,0.00016712,2]
[390518285,1760070643334,-500.0,0.00016712,2]
[390518286,1760070643343,-500.0,0.00016712,2]
[390518287,1760070643352,-500.0,0.00016712,2]
[390518288,1760070643361,-500.0,0.00016712,2]
[390518289,1760070643371,-500.0,0.00016712,2]
[390518290,1760070643380,-500.0,0.00016712,2]
[390518291,1760070643390,-500.0,0.00016712,2]
[390518292,1760070643399,-500.0,0.00016712,2]
[390518293,1760070643409,-500.0,0.00016712,2]
[390518294,1760070643419,-501.49543512,0.00016712,2]
[390518295,1760070643429,-500.0,0.00016712,2]
[390518296,1760070643439,-252.52752145,0.00016712,2]
[390518297,1760070643449,-500.0,0.00016712,2]
[390518298,1760070643458,-500.0,0.00016712,2]
[390518299,1760070643468,-500.0,0.00016712,2]
[390518300,1760070643477,-500.0,0.00016712,2]
[390518301,1760070643486,-500.0,0.00016712,2]
[390518302,1760070643496,-500.0,0.00016712,2]
[390518303,1760070643506,-500.0,0.00016712,2]
[390518304,1760070643516,-500.0,0.00016712,2]
[390518305,1760070643526,-507.56,0.00016712,2]
[390518306,1760070643536,-500.0,0.00016712,2]
[390518307,1760070643546,-500.0,0.00016712,2]
[390518308,1760070643556,-500.0,0.00016712,2]
[390518309,1760070643566,-487.99195088,0.00016712,2]
[390518310,1760070643576,-500.0,0.00016712,2]
[390518311,1760070643586,-500.0,0.00016712,2]
[390518312,1760070643596,-500.0,0.00016712,2]
[390518313,1760070643605,-1198.25,0.00016712,2]
[390518314,1760070643615,-500.0,0.00016712,2]
[390518315,1760070643624,-500.0,0.00016712,2]
[390518316,1760070643633,-500.0,0.00016712,2]
[390518317,1760070643643,-500.0,0.00016712,2]
[390518318,1760070643652,-500.0,0.00016712,2]
[390518319,1760070643661,-500.0,0.00016712,2]
[390518320,1760070643670,-500.0,0.00016712,2]
[390518321,1760070643679,-500.0,0.00016712,2]
[390518322,1760070643688,-500.0,0.00016712,2]
[390518323,1760070643698,-502.68734328,0.00016712,2]
[390518324,1760070643708,-500.0,0.00016712,2]
[390518325,1760070643718,-198.76569405,0.00016712,2]
[390518326,1760070643727,-500.0,0.00016712,2]
[390518327,1760070643736,-500.0,0.00016712,2]
[390518328,1760070643746,-500.0,0.00016712,2]
[390518329,1760070643757,-500.0,0.00016712,2]
[390518330,1760070643767,-500.0,0.00016712,2]
[390518331,1760070643776,-151.0,0.00016712,2]
[390518332,1760070643787,-500.0,0.00016712,2]
[390518333,1760070643796,-664.22,0.00016712,2]
[390518334,1760070643806,-151.0,0.00016712,2]
[390518335,1760070643816,-500.0,0.00016712,2]
[390518336,1760070643825,-151.0,0.00016712,2]
[390518337,1760070643835,-151.0,0.00016712,2]
[390518338,1760070643844,-151.904868,0.00016712,2]
[390518339,1760070643854,-500.0,0.00016712,2]
[390518340,1760070643863,-151.0,0.00016712,2]
[390518341,1760070643873,-151.0,0.00016712,2]
[390518342,1760070643887,-1048.82,0.00016712,2]
[390518343,1760070643897,-500.0,0.00016712,2]
[390518344,1760070643906,-500.0,0.00016712,2]
[390518345,1760070643915,-500.0,0.00016712,2]
[390518346,1760070643926,-500.0,0.00016712,2]
[390518347,1760070643935,-500.0,0.00016712,2]
[390518348,1760070643944,-240.5526988,0.00016712,2]
[390518349,1760070643955,-1202.55,0.00016712,2]
[390518350,1760070643965,-151.0,0.00016712,2]
[390518351,1760070643974,-500.0,0.00016712,2]
[390518352,1760070643983,-500.0,0.00016712,2]
[390518353,1760070643992,-500.0,0.00016712,2]
[390518354,1760070644001,-151.0,0.00016712,2]
[390518355,1760070644010,-151.0,0.00016712,2]
[390518356,1760070644020,-151.0,0.00016712,2]
[390518357,1760070644028,-151.0,0.00016712,2]
[390518358,1760070644038,-151.0,0.00016712,2]
[390518359,1760070644047,-500.0,0.00016712,2]
[390518360,1760070644056,-151.0,0.00016712,2]
[390518361,1760070644066,-151.555572,0.00016712,2]
[390518362,1760070644075,-1064.46,0.00016712,2]
[390518363,1760070644085,-500.0,0.00016712,2]
[390518364,1760070644094,-500.0,0.00016712,2]
[390518365,1760070644103,-898.98,0.00016712,2]
[390518366,1760070644112,-500.0,0.00016712,2]
[390518367,1760070644121,-1154.17,0.00016712,2]
[390518368,1760070644131,-500.0,0.00016712,2]
[390518369,1760070644140,-500.0,0.00016712,2]
[390518370,1760070644150,-500.0,0.00016712,2]
[390518371,1760070644159,-500.0,0.00016712,2]
[390518372,1760070644168,-500.0,0.00016712,2]
[390518373,1760070644178,-500.0,0.00016712,2]
[390518374,1760070644187,-502.11849293,0.00016712,2]
[390518375,1760070644197,-152.994985,0.00016712,2]
[390518376,1760070644206,-502.77583653,0.00016712,2]
[390518377,1760070644216,-500.0,0.00016712,2]
[390518378,1760070644225,-500.0,0.00016712,2]
[390518379,1760070644234,-500.0,0.00016712,2]
[390518380,1760070644244,-500.0,0.00016712,2]
[390518381,1760070644253,-502.78605023,0.00016712,2]
[390518382,1760070644262,-500.0,0.00016712,2]
[390518383,1760070644272,-500.0,0.00016712,2]
[390518384,1760070644281,-500.0,0.00016712,2]
[390518385,1760070644290,-500.0,0.00016712,2]
[390518386,1760070644299,-500.0,0.00016712,2]
[390518387,1760070644309,-500.0,0.00016712,2]
[390518388,1760070644319,-500.0,0.00016712,2]
[390518389,1760070644328,-500.0,0.00016712,2]
[390518390,1760070644337,-500.0,0.00016712,2]
[390518391,1760070644346,-500.0,0.00016712,2]
[390518392,1760070644356,-500.0,0.00016712,2]
[390518393,1760070644365,-500.0,0.00016712,2]
[390518394,1760070644375,-489.84391691,0.00016712,2]
[390518395,1760070644384,-500.0,0.00016712,2]
[390518396,1760070644394,-500.0,0.00016712,2]
[390518397,1760070644403,-905.26,0.00016712,2]
[390518398,1760070644412,-500.0,0.00016712,2]
[390518399,1760070644421,-500.0,0.00016712,2]
[390518400,1760070644431,-500.0,0.00016712,2]
[390518401,1760070644440,-500.0,0.00016712,2]
[390518402,1760070644449,-500.0,0.00016712,2]
[390518403,1760070644459,-500.0,0.00016712,2]
[390518404,1760070644469,-293.234204,0.00016712,2]
[390518405,1760070644478,-500.0,0.00016712,2]
[390518406,1760070644487,-500.0,0.00016712,2]
[390518407,1760070644496,-500.0,0.00016712,2]
[390518408,1760070644506,-500.0,0.00016712,2]
[390518409,1760070644515,-161.091796,0.00016712,2]
[390518410,1760070644525,-1196.66,0.00016712,2]
[390518411,1760070644534,-500.0,0.00016712,2]
[390518412,1760070644543,-151.0,0.00016712,2]
[390518413,1760070644553,-500.0,0.00016712,2]
[390518414,1760070644562,-151.0,0.00016712,2]
[390518415,1760070644572,-500.0,0.00016712,2]
[390518416,1760070644581,-500.0,0.00016712,2]
[390518417,1760070644590,-500.0,0.00016712,2]
[390518418,1760070644600,-151.0,0.00016712,2]
[390518419,1760070644609,-288.254273,0.00016712,2]
[390518420,1760070644619,-7224.74,0.00016712,2]
[390518421,1760070644631,-952.14,0.00016712,2]
[390518422,1760070644640,-152.24932598,0.00016712,2]
[390518423,1760070644649,-151.0,0.00016712,2]
[390518424,1760070644659,-500.0,0.00016712,2]
[390518425,1760070644669,-199.63242529,0.00016712,2]
[390518426,1760070644678,-151.0,0.00016712,2]
[390518427,1760070644687,-500.0,0.00016712,2]
[390518428,1760070644696,-500.0,0.00016712,2]
[390518429,1760070644706,-151.0,0.00016712,2]
[390518430,1760070644715,-151.0,0.00016712,2]
[390518431,1760070644724,-500.0,0.00016712,2]
[390518432,1760070644734,-500.0,0.00016712,2]
[390518433,1760070644743,-826.58,0.00016712,2]
[390518434,1760070644753,-500.0,0.00016712,2]
[390518435,1760070644762,-155.037749,0.00016712,2]
[390518436,1760070644771,-500.0,0.00016712,2]
[390518437,1760070644781,-500.0,0.00016712,2]
[390518438,1760070644790,-500.0,0.00016712,2]
[390518439,1760070644799,-905.87,0.00016712,2]
[390518440,1760070644808,-500.0,0.00016712,2]
[390518441,1760070644818,-500.0,0.00016712,2]
[390518442,1760070644828,-500.0,0.00016712,2]
[390518443,1760070644837,-500.0,0.00016712,2]
[390518444,1760070644846,-151.0,0.00016712,2]
[390518445,1760070644896,-500.0,0.00016712,2]
[390518446,1760070644905,-500.0,0.00016712,2]
[390518447,1760070644914,-500.0,0.00016712,2]
[390518448,1760070644926,-152.298177,0.00016712,2]
[390518449,1760070644934,-500.0,0.00016712,2]
[390518450,1760070644943,-500.0,0.00016712,2]
[390518451,1760070644952,-500.0,0.00016712,2]
[390518452,1760070644962,-154.020421,0.00016712,2]
[390518453,1760070644971,-500.0,0.00016712,2]
[390518454,1760070644980,-261.392589,0.00016712,2]
[390518455,1760070644990,-500.0,0.00016712,2]
[390518456,1760070644999,-151.0,0.00016712,2]
[390518457,1760070645008,-502.83694199,0.00016712,2]
[390518458,1760070645018,-3486.67,0.00016712,2]
[390518459,1760070645027,-500.0,0.00016712,2]
[390518460,1760070645036,-151.0,0.00016712,2]
[390518461,1760070645045,-151.0,0.00016712,2]
[390518462,1760070645055,-503.99328414,0.00016712,2]
[390518463,1760070645064,-1535.28,0.00016712,2]
[390518464,1760070645074,-500.0,0.00016712,2]
[390518465,1760070645083,-500.0,0.00016712,2]
[390518466,1760070645092,-151.0,0.00016712,2]
[390518467,1760070645102,-151.0,0.00016712,2]
[390518468,1760070645112,-820.36,0.00016712,2]
[390518469,1760070645121,-500.0,0.00016712,2]
[390518470,1760070645130,-500.0,0.00016712,2]
[390518471,1760070645140,-500.0,0.00016712,2]
[390518472,1760070645149,-151.0,0.00016712,2]
[390518473,1760070645158,-500.0,0.00016712,2]
[390518474,1760070645167,-151.0,0.00016712,2]
[390518475,1760070645177,-2230.39,0.00016712,2]
[390518476,1760070645186,-632.84,0.00016712,2]
[390518477,1760070645195,-4945.72,0.00016712,2]
[390518478,1760070645204,-890.37,0.00016712,2]
[390518479,1760070645213,-153.136736,0.00016712,2]
[390518480,1760070645222,-500.0,0.00016712,2]
[390518481,1760070645231,-5722.37,0.00016712,2]
[390518482,1760070645239,-500.0,0.00016712,2]
[390518483,1760070645249,-500.0,0.00016712,2]
[390518484,1760070645258,-628.26117317,0.00016712,2]
[390518485,1760070645267,-500.0,0.00016712,2]
[390518486,1760070645276,-1109.96,0.00016712,2]
[390518487,1760070645284,-3394.74,0.00016712,2]
[390518488,1760070645294,-500.0,0.00016712,2]
[390518489,1760070645303,-500.0,0.00016712,2]
[390518490,1760070645311,-281.44631974,0.00016712,2]
[390518491,1760070645322,-500.0,0.00016712,2]
[390518492,1760070645331,-772.97,0.00016712,2]
[390518493,1760070645340,-500.0,0.00016712,2]
[390518494,1760070645349,-1086.29,0.00016712,2]
[390518495,1760070645358,-862.84,0.00016712,2]
[390518496,1760070645367,-500.0,0.00016712,2]
[390518497,1760070645376,-151.648283,0.00016712,2]
[390518498,1760070645384,-504.28372938,0.00016712,2]
[390518499,1760070645394,-500.0,0.00016712,2]
[390518500,1760070645403,-500.0,0.00016712,2]
[390518501,1760070645412,-500.0,0.00016712,2]
[390518502,1760070645420,-500.0,0.00016712,2]
[390518503,1760070645430,-500.0,0.00016712,2]
[390518504,1760070645438,-329.67375163,0.00016712,2]
[390518505,1760070645447,-500.0,0.00016712,2]
[390518506,1760070645456,-500.0,0.00016712,2]
[390518507,1760070645465,-500.0,0.00016712,2]
[390518508,1760070645475,-151.0,0.00016712,2]
[390518509,1760070645484,-1004.3,0.00016712,2]
[390518510,1760070645493,-151.681857,0.00016712,2]
[390518511,1760070645502,-500.0,0.00016712,2]
[390518512,1760070645511,-500.0,0.00016712,2]
[390518513,1760070645520,-500.0,0.00016712,2]
[390518514,1760070645529,-500.0,0.00016712,2]
[390518515,1760070645538,-500.0,0.00016712,2]
[390518516,1760070645547,-256.002538,0.00016712,2]
[390518517,1760070645556,-500.0,0.00016712,2]
[390518518,1760070645565,-256.002538,0.00016712,2]
[390518519,1760070645575,-722.92,0.00016712,2]
[390518520,1760070645585,-256.002538,0.00016712,2]
[390518521,1760070645594,-256.002538,0.00016712,2]
[390518523,1760070645603,-500.0,0.00016712,2]
[390518524,1760070645612,-510.52,0.00016712,2]
[390518525,1760070645621,-500.0,0.00016712,2]
[390518527,1760070645630,-256.002538,0.00016712,2]
[390518528,1760070645639,-256.002538,0.00016712,2]
[390518529,1760070645648,-500.0,0.00016712,2]
[390518531,1760070645658,-1444.48,0.00016712,2]
[390518532,1760070645667,-500.0,0.00016712,2]
[390518533,1760070645676,-256.002538,0.00016712,2]
[390518535,1760070645687,-256.002538,0.00016712,2]
[390518537,1760070645696,-696.07,0.00016712,2]
[390518538,1760070645705,-884.98,0.00016712,2]
[390518540,1760070645714,-151.0,0.00016712,2]
[390518541,1760070645723,-500.0,0.00016712,2]
[390518542,1760070645732,-151.0,0.00016712,2]
[390518543,1760070645741,-1173.93,0.00016712,2]
[390518545,1760070645750,-247.21253277,0.00016712,2]
[390518546,1760070645759,-500.0,0.00016712,2]
[390518547,1760070645769,-500.0,0.00016712,2]
[390518549,1760070645778,-586.92,0.00016712,2]
[390518551,1760070645787,-151.0,0.00016712,2]
[390518553,1760070645796,-151.0,0.00016712,2]
[390518555,1760070645806,-500.0,0.00016712,2]
[390518557,1760070645815,-151.0,0.00016712,2]
[390518559,1760070645824,-151.0,0.00016712,2]
[390518561,1760070645833,-151.0,0.00016712,2]
[390518563,1760070645842,-151.0,0.00016712,2]
[390518565,1760070645851,-500.0,0.00016712,2]
[390518567,1760070645860,-500.0,0.00016712,2]
[390518569,1760070645869,-786.66,0.00016712,2]
[390518571,1760070645881,-4033.9,0.00016712,2]
[390518573,1760070645892,-1339.71,0.00016712,2]
[390518575,1760070645901,-500.0,0.00016712,2]
[390518577,1760070645910,-500.0,0.00016712,2]
[390518579,1760070645919,-500.0,0.00016712,2]
[390518581,1760070645930,-773.8,0.00016712,2]
[390518583,1760070645939,-500.0,0.00016712,2]
[390518585,1760070645948,-500.0,0.00016712,2]
[390518587,1760070645960,-555.02,0.00016712,2]
[390518589,1760070645969,-500.0,0.00016712,2]
[390518591,1760070645978,-4055.36,0.00016712,2]
[390518593,1760070645987,-500.0,0.00016712,2]
[390518595,1760070645995,-500.0,0.00016712,2]
[390518597,1760070646004,-500.0,0.00016712,2]
[390518599,1760070646014,-501.4714528,0.00016712,2]
[390518601,1760070646023,-1080.45,0.00016712,2]
[390518603,1760070646033,-500.0,0.00016712,2]
[390518605,1760070646042,-503.11882151,0.00016712,2]
[390518607,1760070646051,-500.0,0.00016712,2]
[390518609,1760070646061,-2898.18,0.00016712,2]
[390518611,1760070646071,-151.0,0.00016712,2]
[390518612,1760070646081,-152.319799,0.00016712,2]
[390518614,1760070646090,-151.0,0.00016712,2]
[390518616,1760070646099,-232.335434,0.00016712,2]
[390518618,1760070646108,-500.0,0.00016712,2]
[390518620,1760070646117,-500.0,0.00016712,2]
[390518622,1760070646126,-153.139071,0.00016712,2]
[390518624,1760070646135,-541.93,0.00016712,2]
[390518626,1760070646145,-500.0,0.00016712,2]
[390518628,1760070646154,-2004.02,0.00016712,2]
[390518630,1760070646163,-151.0,0.00016712,2]
[390518632,1760070646172,-151.0,0.00016712,2]
[390518634,1760070646181,-151.0,0.00016712,2]
[390518636,1760070646191,-151.0,0.00016712,2]
[390518638,1760070646200,-500.0,0.00016712,2]
[390518640,1760070646209,-500.0,0.00016712,2]
[390518642,1760070646218,-158.605407,0.00016712,2]
[390518645,1760070646228,-500.0,0.00016712,2]
[390518647,1760070646237,-151.0,0.00016712,2]
[390518649,1760070646247,-151.0,0.00016712,2]
[390518651,1760070646256,-500.0,0.00016712,2]
[390518653,1760070646265,-500.0,0.00016712,2]
[390518655,1760070646274,-500.0,0.00016712,2]
[390518657,1760070646284,-500.0,0.00016712,2]
[390518659,1760070646293,-500.0,0.00016712,2]
[390518661,1760070646302,-375.81580885,0.00016712,2]
[390518663,1760070646311,-151.0,0.00016712,2]
[390518665,1760070646320,-151.0,0.00016712,2]
[390518667,1760070646329,-151.0,0.00016712,2]
[390518669,1760070646339,-151.0,0.00016712,2]
[390518671,1760070646348,-504.14856226,0.00016712,2]
[390518673,1760070646358,-1292.37,0.00016712,2]
[390518675,1760070646367,-151.0,0.00016712,2]
[390518677,1760070646377,-178.82930979,0.00016712,2]
[390518679,1760070646386,-151.0,0.00016712,2]
[390518681,1760070646396,-781.97,0.00016712,2]
[390518683,1760070646405,-500.0,0.00016712,2]
[390518685,1760070646414,-500.82750566,0.00016712,2]
[390518687,1760070646423,-500.0,0.00016712,2]
[390518689,1760070646433,-154.141836,0.00016712,2]
[390518691,1760070646442,-760.77,0.00016712,2]
[390518693,1760070646451,-1201.21,0.00016712,2]
[390518695,1760070646461,-500.0,0.00016712,2]
[390518697,1760070646470,-500.0,0.00016712,2]
[390518699,1760070646479,-500.0,0.00016712,2]
[390518701,1760070646489,-500.0,0.00016712,2]
[390518703,1760070646498,-776.54,0.00016712,2]
[390518705,1760070646508,-500.0,0.00016712,2]
[390518707,1760070646518,-749.88,0.00016712,2]
[390518709,1760070646528,-930.46,0.00016712,2]
[390518711,1760070646537,-718.57,0.00016712,2]
[390518713,1760070646546,-500.0,0.00016712,2]
[390518715,1760070646556,-500.0,0.00016712,2]
[390518717,1760070646565,-1138.46,0.00016712,2]
[390518720,1760070646575,-644.11,0.00016712,2]
[390518722,1760070646584,-500.0,0.00016712,2]
[390518724,1760070646593,-5494.58,0.00016712,2]
[390518726,1760070646602,-151.0,0.00016712,2]
[390518728,1760070646611,-152.401728,0.00016712,2]
[390518729,1760070646620,-151.0,0.00016712,2]
[390518732,1760070646630,-151.0,0.00016712,2]
[390518734,1760070646640,-1822.9,0.00016712,2]
[390518736,1760070646650,-968.88,0.00016712,2]
[390518738,1760070646660,-200.0,0.00016712,2]
[390518740,1760070646669,-151.0,0.00016712,2]
[390518742,1760070646681,-151.0,0.00016712,2]
[390518744,1760070646691,-151.0,0.00016712,2]
[390518746,1760070646700,-151.0,0.00016712,2]
[390518748,1760070646709,-151.0,0.00016712,2]
[390518750,1760070646718,-151.0,0.00016712,2]
[390518752,1760070646727,-500.0,0.00016712,2]
[390518754,1760070646737,-151.0,0.00016712,2]
[390518756,1760070646746,-151.0,0.00016712,2]
[390518758,1760070646756,-500.0,0.00016712,2]
[390518760,1760070646765,-500.0,0.00016712,2]
[390518762,1760070646775,-151.0,0.00016712,2]
[390518764,1760070646785,-151.0,0.00016712,2]
[390518766,1760070646794,-151.0,0.00016712,2]
[390518768,1760070646803,-500.0,0.00016712,2]
[390518770,1760070646813,-151.0,0.00016712,2]
[390518772,1760070646822,-607.16,0.00016712,2]